[Event "Titled Tuesday Blitz November 29 Late 2022"]
[White "Khandelwal, Ankush"]
[Black "Han, Yichen"]
[WhiteFideId "413470"]
[BlackFideId "1054430"]
[WhiteElo "2271"]
[BlackElo "2323"]
[Result "1/2-1/2"]
[Round "03"]
[TimeControl "180+1"]
[Date "2022.11.30"]
[WhiteClock "0:00:07"]
[BlackClock "0:00:19"]

1. e4 {[%clk 0:03:00]}  c6 {[%clk 0:02:54]} 2. d4 {[%clk 0:03:00]}  d5 {[%clk 0:02:54]} 3. e5 {[%clk 0:03:01]}  Bf5 {[%clk 0:02:54]} 4. h4 {[%clk 0:03:01]}  h5 {[%clk 0:02:53]} 5. Bd3 {[%clk 0:03:01]}  Bxd3 {[%clk 0:02:50]} 6. Qxd3 {[%clk 0:03:02]}  e6 {[%clk 0:02:50]} 7. Bg5 {[%clk 0:03:03]}  Be7 {[%clk 0:02:50]} 8. Nf3 {[%clk 0:03:02]}  Qb6 {[%clk 0:02:47]} 9. Nbd2 {[%clk 0:03:00]}  Qa6 {[%clk 0:02:47]} 10. c4 {[%clk 0:02:59]}  Nd7 {[%clk 0:02:45]} 11. b3 {[%clk 0:02:50]}  Bxg5 {[%clk 0:02:40]} 12. hxg5 {[%clk 0:02:49]}  g6 {[%clk 0:02:36]} 13. g4 {[%clk 0:02:48]}  Ne7 {[%clk 0:02:35]} 14. gxh5 {[%clk 0:02:47]}  Rxh5 {[%clk 0:02:29]} 15. Rxh5 {[%clk 0:02:47]}  gxh5 {[%clk 0:02:30]} 16. Nh4 {[%clk 0:02:45]}  O-O-O {[%clk 0:02:29]} 17. O-O-O {[%clk 0:02:36]}  Qxa2 {[%clk 0:02:26]} 18. f4 {[%clk 0:02:28]}  dxc4 {[%clk 0:02:24]} 19. Qxc4 {[%clk 0:02:04]}  Nd5 {[%clk 0:02:17]} 20. Ne4 {[%clk 0:02:02]}  Qa1+ {[%clk 0:02:08]} 21. Kd2 {[%clk 0:02:02]}  Qxd1+ {[%clk 0:02:06]} 22. Kxd1 {[%clk 0:02:03]}  Ne3+ {[%clk 0:01:59]} 23. Ke2 {[%clk 0:02:03]}  Nxc4 {[%clk 0:02:00]} 24. bxc4 {[%clk 0:02:04]}  Nb6 {[%clk 0:01:52]} 25. Kd3 {[%clk 0:01:43]}  Kc7 {[%clk 0:01:24]} 26. Nd6 {[%clk 0:01:40]}  Rf8 {[%clk 0:01:13]} 27. f5 {[%clk 0:01:15]}  Nc8 {[%clk 0:01:04]} 28. Nxf7 {[%clk 0:00:33]}  Rxf7 {[%clk 0:00:59]} 29. f6 {[%clk 0:00:29]}  Ne7 {[%clk 0:00:47]} 30. g6 {[%clk 0:00:16]}  Nxg6 {[%clk 0:00:48]} 31. Nxg6 {[%clk 0:00:16]}  Kd7 {[%clk 0:00:43]} 32. Nf4 {[%clk 0:00:17]}  Rh7 {[%clk 0:00:41]} 33. d5 {[%clk 0:00:15]}  cxd5 {[%clk 0:00:36]} 34. cxd5 {[%clk 0:00:15]}  exd5 {[%clk 0:00:36]} 35. e6+ {[%clk 0:00:16]}  Kd6 {[%clk 0:00:32]} 36. f7 {[%clk 0:00:06]}  Rxf7 {[%clk 0:00:19]} 37. exf7 {[%clk 0:00:06]}  Ke7 {[%clk 0:00:20]} 38. Nxh5 {[%clk 0:00:05]}  Kxf7 {[%clk 0:00:20]} 39. Kd4 {[%clk 0:00:06]}  a5 {[%clk 0:00:18]} 40. Kxd5 {[%clk 0:00:05]}  a4 {[%clk 0:00:18]} 41. Kc4 {[%clk 0:00:06]}  b5+ {[%clk 0:00:15]} 42. Kb4 {[%clk 0:00:06]}  Ke6 {[%clk 0:00:16]} 43. Nf4+ {[%clk 0:00:05]}  Ke5 {[%clk 0:00:16]} 44. Nd3+ {[%clk 0:00:06]}  Kd4 {[%clk 0:00:17]} 45. Nb2 {[%clk 0:00:05]}  a3 {[%clk 0:00:15]} 46. Kxa3 {[%clk 0:00:04]}  Kc3 {[%clk 0:00:16]} 47. Ka2 {[%clk 0:00:04]}  Kc2 {[%clk 0:00:15]} 48. Ka3 {[%clk 0:00:04]}  Kc3 {[%clk 0:00:16]} 49. Ka2 {[%clk 0:00:04]}  b4 {[%clk 0:00:16]} 50. Kb1 {[%clk 0:00:04]}  b3 {[%clk 0:00:16]} 51. Nd1+ {[%clk 0:00:04]}  Kc4 {[%clk 0:00:16]} 52. Kb2 {[%clk 0:00:04]}  Kb4 {[%clk 0:00:17]} 53. Ne3 {[%clk 0:00:05]}  Ka4 {[%clk 0:00:18]} 54. Nf5 {[%clk 0:00:05]}  Kb5 {[%clk 0:00:19]} 55. Nd4+ {[%clk 0:00:06]}  Kc4 {[%clk 0:00:19]} 56. Nxb3 {[%clk 0:00:07]} 1/2-1/2


[Site "https://www.chess.com"]

[Event "Titled Tuesday Blitz November 29 Late 2022"]
[White "Kirillov, Dmitry"]
[Black "De Souza, Cristiano Gomes"]
[WhiteFideId "34180572"]
[BlackFideId "2151758"]
[WhiteElo "2095"]
[BlackElo "2068"]
[Result "0-1"]
[Round "03"]
[TimeControl "180+1"]
[Date "2022.11.30"]
[WhiteClock "0:00:07"]
[BlackClock "0:01:01"]

1. e4 {[%clk 0:02:59]}  c5 {[%clk 0:02:59]} 2. Nc3 {[%clk 0:02:59]}  d6 {[%clk 0:02:57]} 3. f4 {[%clk 0:02:59]}  g6 {[%clk 0:02:58]} 4. Nf3 {[%clk 0:02:59]}  Bg4 {[%clk 0:02:57]} 5. Bc4 {[%clk 0:02:59]}  e6 {[%clk 0:02:56]} 6. O-O {[%clk 0:02:57]}  Nc6 {[%clk 0:02:56]} 7. h3 {[%clk 0:02:56]}  Bxf3 {[%clk 0:02:55]} 8. Qxf3 {[%clk 0:02:57]}  Nd4 {[%clk 0:02:55]} 9. Qd1 {[%clk 0:02:57]}  Bg7 {[%clk 0:02:55]} 10. d3 {[%clk 0:02:57]}  Ne7 {[%clk 0:02:54]} 11. Be3 {[%clk 0:02:57]}  Nec6 {[%clk 0:02:53]} 12. Qd2 {[%clk 0:02:56]}  O-O {[%clk 0:02:52]} 13. Nd1 {[%clk 0:02:56]}  b5 {[%clk 0:02:49]} 14. Bb3 {[%clk 0:02:55]}  Nxb3 {[%clk 0:02:49]} 15. axb3 {[%clk 0:02:56]}  Nd4 {[%clk 0:02:47]} 16. Kh1 {[%clk 0:02:51]}  a5 {[%clk 0:02:45]} 17. g4 {[%clk 0:02:48]}  Qc7 {[%clk 0:02:41]} 18. f5 {[%clk 0:02:42]}  exf5 {[%clk 0:02:40]} 19. Bxd4 {[%clk 0:02:42]}  Bxd4 {[%clk 0:02:38]} 20. gxf5 {[%clk 0:02:42]}  Qe7 {[%clk 0:02:24]} 21. c3 {[%clk 0:02:32]}  Bg7 {[%clk 0:02:21]} 22. Ne3 {[%clk 0:02:30]}  Qh4 {[%clk 0:02:18]} 23. Qg2 {[%clk 0:02:27]}  a4 {[%clk 0:01:57]} 24. bxa4 {[%clk 0:02:14]}  bxa4 {[%clk 0:01:56]} 25. Nd5 {[%clk 0:02:10]}  Be5 {[%clk 0:01:45]} 26. Nb6 {[%clk 0:01:42]}  Ra6 {[%clk 0:01:39]} 27. Nd7 {[%clk 0:01:33]}  Re8 {[%clk 0:01:31]} 28. fxg6 {[%clk 0:01:25]}  fxg6 {[%clk 0:01:27]} 29. Qf3 {[%clk 0:01:21]}  Qe7 {[%clk 0:01:25]} 30. Nxe5 {[%clk 0:01:19]}  Qxe5 {[%clk 0:01:25]} 31. Qf7+ {[%clk 0:01:19]}  Kh8 {[%clk 0:01:25]} 32. Qc4 {[%clk 0:01:04]}  Rb6 {[%clk 0:01:19]} 33. Qxa4 {[%clk 0:01:02]}  Rxb2 {[%clk 0:01:16]} 34. Rf4 {[%clk 0:00:32]}  g5 {[%clk 0:01:08]} 35. Rg1 {[%clk 0:00:07]}  gxf4 {[%clk 0:01:05]} 36. Qd7 {[%clk 0:00:07]}  f3 {[%clk 0:01:01]} 0-1


[Site "https://www.chess.com"]

[Event "Titled Tuesday Blitz November 29 Late 2022"]
[White "Kovacevic, Radmila"]
[Black "Rosenberg, Evan S"]
[WhiteFideId "933171"]
[BlackFideId "2019299"]
[WhiteElo "2208"]
[BlackElo "2380"]
[Result "1-0"]
[Round "03"]
[TimeControl "180+1"]
[Date "2022.11.30"]
[WhiteClock "0:00:07"]
[BlackClock "0:00:09"]

1. e4 {[%clk 0:03:00]}  e5 {[%clk 0:02:59]} 2. d4 {[%clk 0:03:00]}  exd4 {[%clk 0:02:59]} 3. Qxd4 {[%clk 0:03:01]}  Nc6 {[%clk 0:02:58]} 4. Qe3 {[%clk 0:03:00]}  Nf6 {[%clk 0:02:58]} 5. Bd2 {[%clk 0:03:00]}  Be7 {[%clk 0:02:49]} 6. c4 {[%clk 0:02:58]}  O-O {[%clk 0:02:49]} 7. Nc3 {[%clk 0:02:53]}  Re8 {[%clk 0:02:49]} 8. O-O-O {[%clk 0:02:42]}  Bb4 {[%clk 0:02:48]} 9. f3 {[%clk 0:02:38]}  Ne5 {[%clk 0:02:35]} 10. a3 {[%clk 0:02:28]}  Bf8 {[%clk 0:02:16]} 11. g4 {[%clk 0:02:21]}  c6 {[%clk 0:02:05]} 12. Be1 {[%clk 0:01:54]}  d5 {[%clk 0:01:42]} 13. g5 {[%clk 0:01:39]}  Nh5 {[%clk 0:01:23]} 14. cxd5 {[%clk 0:01:33]}  cxd5 {[%clk 0:01:18]} 15. Nxd5 {[%clk 0:01:34]}  Kh8 {[%clk 0:00:56]} 16. Bc3 {[%clk 0:01:03]}  Ng6 {[%clk 0:00:37]} 17. Nf4 {[%clk 0:00:52]}  Qxd1+ {[%clk 0:00:33]} 18. Kxd1 {[%clk 0:00:51]}  Nhxf4 {[%clk 0:00:27]} 19. h4 {[%clk 0:00:45]}  Nd5 {[%clk 0:00:28]} 20. Qc1 {[%clk 0:00:30]}  Nxc3+ {[%clk 0:00:26]} 21. Qxc3 {[%clk 0:00:31]}  Rd8+ {[%clk 0:00:22]} 22. Ke1 {[%clk 0:00:29]}  Be6 {[%clk 0:00:20]} 23. h5 {[%clk 0:00:29]}  Nf4 {[%clk 0:00:20]} 24. Rh4 {[%clk 0:00:20]}  Bd6 {[%clk 0:00:16]} 25. h6 {[%clk 0:00:18]}  Rg8 {[%clk 0:00:14]} 26. hxg7+ {[%clk 0:00:13]}  Rxg7 {[%clk 0:00:14]} 27. e5 {[%clk 0:00:13]}  Nd5 {[%clk 0:00:13]} 28. Qd4 {[%clk 0:00:10]}  Bc7 {[%clk 0:00:12]} 29. Bd3 {[%clk 0:00:08]}  Rd8 {[%clk 0:00:12]} 30. Qe4 {[%clk 0:00:03]}  Ne7 {[%clk 0:00:08]} 31. Rxh7+ {[%clk 0:00:03]}  Kg8 {[%clk 0:00:08]} 32. Rxg7+ {[%clk 0:00:03]}  Kxg7 {[%clk 0:00:09]} 33. Qh7+ {[%clk 0:00:03]}  Kf8 {[%clk 0:00:10]} 34. Qh8+ {[%clk 0:00:03]}  Ng8 {[%clk 0:00:10]} 35. Bh7 {[%clk 0:00:04]}  Ke7 {[%clk 0:00:10]} 36. Bxg8 {[%clk 0:00:04]}  Ba5+ {[%clk 0:00:09]} 37. Kf2 {[%clk 0:00:04]}  Bb6+ {[%clk 0:00:09]} 38. Kg2 {[%clk 0:00:04]}  Bd4 {[%clk 0:00:08]} 39. Qf6+ {[%clk 0:00:04]}  Ke8 {[%clk 0:00:08]} 40. g6 {[%clk 0:00:02]}  Rd5 {[%clk 0:00:08]} 41. Bxf7+ {[%clk 0:00:01]}  Kd7 {[%clk 0:00:07]} 42. Bxe6+ {[%clk 0:00:01]}  Kc7 {[%clk 0:00:07]} 43. Bxd5 {[%clk 0:00:02]}  Bxe5 {[%clk 0:00:08]} 44. Qxe5+ {[%clk 0:00:02]}  Kd7 {[%clk 0:00:08]} 45. g7 {[%clk 0:00:03]}  b5 {[%clk 0:00:08]} 46. g8=Q {[%clk 0:00:04]}  a5 {[%clk 0:00:09]} 47. Qgg7+ {[%clk 0:00:04]}  Kd8 {[%clk 0:00:09]} 48. Qg6 {[%clk 0:00:05]}  b4 {[%clk 0:00:09]} 49. Qeg7 {[%clk 0:00:06]}  bxa3 {[%clk 0:00:09]} 50. Q6f7 {[%clk 0:00:06]}  axb2 {[%clk 0:00:09]} 51. Qd7# {[%clk 0:00:07]} 1-0


[Site "https://www.chess.com"]

[Event "Titled Tuesday Blitz November 29 Late 2022"]
[White "Lewtak, Damian"]
[Black "Ankerst, Mihael"]
[WhiteFideId "1141724"]
[BlackFideId "14602369"]
[WhiteElo "2329"]
[BlackElo "2319"]
[Result "1-0"]
[Round "03"]
[TimeControl "180+1"]
[Date "2022.11.30"]
[WhiteClock "0:00:26"]
[BlackClock "0:00:10"]

1. e4 {[%clk 0:03:00]}  c5 {[%clk 0:02:52]} 2. Nf3 {[%clk 0:03:00]}  Qb6 {[%clk 0:02:52]} 3. Nc3 {[%clk 0:02:59]}  Nc6 {[%clk 0:02:52]} 4. g3 {[%clk 0:02:59]}  e6 {[%clk 0:02:52]} 5. Bg2 {[%clk 0:02:58]}  d6 {[%clk 0:02:52]} 6. O-O {[%clk 0:02:59]}  Be7 {[%clk 0:02:53]} 7. d3 {[%clk 0:02:59]}  Nf6 {[%clk 0:02:53]} 8. Rb1 {[%clk 0:02:58]}  a6 {[%clk 0:02:54]} 9. a3 {[%clk 0:02:57]}  Qc7 {[%clk 0:02:54]} 10. Re1 {[%clk 0:02:54]}  Bd7 {[%clk 0:02:55]} 11. Bf4 {[%clk 0:02:50]}  O-O {[%clk 0:02:54]} 12. e5 {[%clk 0:02:49]}  dxe5 {[%clk 0:02:54]} 13. Nxe5 {[%clk 0:02:50]}  Nxe5 {[%clk 0:02:52]} 14. Bxe5 {[%clk 0:02:50]}  Qc8 {[%clk 0:02:53]} 15. Ne4 {[%clk 0:02:48]}  Bc6 {[%clk 0:02:44]} 16. Nxf6+ {[%clk 0:02:46]}  gxf6 {[%clk 0:02:44]} 17. Qg4+ {[%clk 0:02:32]}  Kh8 {[%clk 0:02:43]} 18. Qh4 {[%clk 0:02:32]}  fxe5 {[%clk 0:02:29]} 19. Qxe7 {[%clk 0:02:32]}  f6 {[%clk 0:02:29]} 20. Be4 {[%clk 0:01:58]}  Qd7 {[%clk 0:02:03]} 21. Qxd7 {[%clk 0:01:49]}  Bxd7 {[%clk 0:02:03]} 22. Bxb7 {[%clk 0:01:50]}  Ra7 {[%clk 0:02:03]} 23. Bg2 {[%clk 0:01:47]}  a5 {[%clk 0:02:03]} 24. b3 {[%clk 0:01:39]}  Kg7 {[%clk 0:02:01]} 25. a4 {[%clk 0:01:39]}  Rd8 {[%clk 0:01:58]} 26. Re3 {[%clk 0:01:38]}  Be8 {[%clk 0:01:57]} 27. f4 {[%clk 0:01:35]}  exf4 {[%clk 0:01:53]} 28. Rxe6 {[%clk 0:01:36]}  fxg3 {[%clk 0:01:53]} 29. hxg3 {[%clk 0:01:37]}  c4 {[%clk 0:01:47]} 30. dxc4 {[%clk 0:01:16]}  Bg6 {[%clk 0:01:47]} 31. Be4 {[%clk 0:01:04]}  Rd2 {[%clk 0:01:41]} 32. Bxg6 {[%clk 0:00:58]}  hxg6 {[%clk 0:01:38]} 33. Rbe1 {[%clk 0:00:56]}  Rxc2 {[%clk 0:01:30]} 34. R1e2 {[%clk 0:00:55]}  Rc1+ {[%clk 0:01:19]} 35. Kf2 {[%clk 0:00:54]}  Rb1 {[%clk 0:01:19]} 36. Re7+ {[%clk 0:00:52]}  Rxe7 {[%clk 0:01:18]} 37. Rxe7+ {[%clk 0:00:53]}  Kh6 {[%clk 0:01:19]} 38. Re3 {[%clk 0:00:53]}  Kg5 {[%clk 0:01:19]} 39. Rc3 {[%clk 0:00:53]}  Kf5 {[%clk 0:01:16]} 40. c5 {[%clk 0:00:52]}  Rd1 {[%clk 0:01:11]} 41. c6 {[%clk 0:00:52]}  Rd8 {[%clk 0:01:11]} 42. Rc5+ {[%clk 0:00:49]}  Ke6 {[%clk 0:01:11]} 43. Rxa5 {[%clk 0:00:48]}  Kd6 {[%clk 0:01:11]} 44. Ra6 {[%clk 0:00:46]}  Rb8 {[%clk 0:01:09]} 45. c7+ {[%clk 0:00:46]}  Kxc7 {[%clk 0:01:09]} 46. Rxf6 {[%clk 0:00:47]}  Rxb3 {[%clk 0:01:10]} 47. Rxg6 {[%clk 0:00:47]}  Rb4 {[%clk 0:01:07]} 48. a5 {[%clk 0:00:47]}  Ra4 {[%clk 0:00:54]} 49. a6 {[%clk 0:00:47]}  Ra3 {[%clk 0:00:54]} 50. Kg2 {[%clk 0:00:47]}  Kd7 {[%clk 0:00:54]} 51. Kh3 {[%clk 0:00:47]}  Ke7 {[%clk 0:00:55]} 52. Rb6 {[%clk 0:00:47]}  Kf7 {[%clk 0:00:54]} 53. Kh4 {[%clk 0:00:44]}  Kg7 {[%clk 0:00:51]} 54. g4 {[%clk 0:00:43]}  Ra1 {[%clk 0:00:51]} 55. Kh5 {[%clk 0:00:41]}  Ra2 {[%clk 0:00:48]} 56. Rb7+ {[%clk 0:00:35]}  Kg8 {[%clk 0:00:44]} 57. a7 {[%clk 0:00:32]}  Ra5+ {[%clk 0:00:20]} 58. g5 {[%clk 0:00:27]}  Ra1 {[%clk 0:00:18]} 59. Rb8+ {[%clk 0:00:27]}  Kg7 {[%clk 0:00:17]} 60. a8=Q {[%clk 0:00:28]}  Rh1+ {[%clk 0:00:10]} 61. Qxh1 {[%clk 0:00:26]} 1-0


[Site "https://www.chess.com"]

[Event "Titled Tuesday Blitz November 29 Late 2022"]
[White "Lopez Mulet, Inigo"]
[Black "Preotu, Razvan"]
[WhiteFideId "22235620"]
[BlackFideId "2613280"]
[WhiteElo "2289"]
[BlackElo "2407"]
[Result "1/2-1/2"]
[Round "03"]
[TimeControl "180+1"]
[Date "2022.11.30"]
[WhiteClock "0:00:10"]
[BlackClock "0:00:06"]

1. d4 {[%clk 0:02:58]}  Nf6 {[%clk 0:02:56]} 2. c4 {[%clk 0:02:57]}  g6 {[%clk 0:02:56]} 3. f3 {[%clk 0:02:56]}  Bg7 {[%clk 0:02:49]} 4. e4 {[%clk 0:02:57]}  d6 {[%clk 0:02:50]} 5. Nc3 {[%clk 0:02:57]}  O-O {[%clk 0:02:50]} 6. Be3 {[%clk 0:02:58]}  a6 {[%clk 0:02:48]} 7. Qd2 {[%clk 0:02:58]}  c5 {[%clk 0:02:45]} 8. Nge2 {[%clk 0:02:56]}  Nc6 {[%clk 0:02:42]} 9. d5 {[%clk 0:02:57]}  Ne5 {[%clk 0:02:42]} 10. Ng3 {[%clk 0:02:57]}  e6 {[%clk 0:02:35]} 11. Be2 {[%clk 0:02:55]}  exd5 {[%clk 0:02:35]} 12. cxd5 {[%clk 0:02:54]}  b5 {[%clk 0:02:35]} 13. O-O {[%clk 0:02:54]}  b4 {[%clk 0:02:12]} 14. Nd1 {[%clk 0:02:51]}  a5 {[%clk 0:02:12]} 15. h3 {[%clk 0:02:48]}  Ba6 {[%clk 0:02:13]} 16. Rc1 {[%clk 0:02:47]}  c4 {[%clk 0:02:08]} 17. Bd4 {[%clk 0:02:38]}  Rc8 {[%clk 0:01:58]} 18. Ne3 {[%clk 0:02:38]}  Nfd7 {[%clk 0:01:50]} 19. f4 {[%clk 0:02:18]}  Nd3 {[%clk 0:01:49]} 20. Bxg7 {[%clk 0:02:18]}  Kxg7 {[%clk 0:01:49]} 21. Nxc4 {[%clk 0:02:07]}  Nxc1 {[%clk 0:01:48]} 22. Rxc1 {[%clk 0:02:08]}  Bxc4 {[%clk 0:01:28]} 23. Bxc4 {[%clk 0:02:05]}  Nb6 {[%clk 0:01:24]} 24. Qd4+ {[%clk 0:01:58]}  Kg8 {[%clk 0:01:24]} 25. b3 {[%clk 0:01:55]}  Nxc4 {[%clk 0:01:17]} 26. bxc4 {[%clk 0:01:55]}  Qh4 {[%clk 0:01:09]} 27. Qe3 {[%clk 0:01:34]}  Rfe8 {[%clk 0:01:08]} 28. Kh2 {[%clk 0:01:25]}  h5 {[%clk 0:01:03]} 29. c5 {[%clk 0:01:17]}  Rxc5 {[%clk 0:01:01]} 30. Rxc5 {[%clk 0:01:17]}  dxc5 {[%clk 0:01:02]} 31. e5 {[%clk 0:01:18]}  g5 {[%clk 0:00:44]} 32. Ne2 {[%clk 0:00:36]}  gxf4 {[%clk 0:00:41]} 33. Nxf4 {[%clk 0:00:37]}  Qg5 {[%clk 0:00:39]} 34. e6 {[%clk 0:00:30]}  fxe6 {[%clk 0:00:38]} 35. dxe6 {[%clk 0:00:31]}  h4 {[%clk 0:00:33]} 36. Qe4 {[%clk 0:00:28]}  Qg3+ {[%clk 0:00:22]} 37. Kg1 {[%clk 0:00:26]}  Rd8 {[%clk 0:00:20]} 38. Nd5 {[%clk 0:00:26]}  Qg5 {[%clk 0:00:16]} 39. e7 {[%clk 0:00:27]}  Re8 {[%clk 0:00:16]} 40. Qe6+ {[%clk 0:00:27]}  Kg7 {[%clk 0:00:16]} 41. Ne3 {[%clk 0:00:20]}  Rxe7 {[%clk 0:00:10]} 42. Nf5+ {[%clk 0:00:21]}  Kf8 {[%clk 0:00:10]} 43. Qc8+ {[%clk 0:00:21]}  Kf7 {[%clk 0:00:10]} 44. Nd6+ {[%clk 0:00:20]}  Kg7 {[%clk 0:00:08]} 45. Nf5+ {[%clk 0:00:18]}  Kf6 {[%clk 0:00:06]} 46. Nxe7 {[%clk 0:00:11]}  Kxe7 {[%clk 0:00:07]} 47. Qc7+ {[%clk 0:00:11]}  Kf6 {[%clk 0:00:07]} 48. Qd8+ {[%clk 0:00:12]}  Kg6 {[%clk 0:00:07]} 49. Qg8+ {[%clk 0:00:12]}  Kf5 {[%clk 0:00:06]} 50. Qd5+ {[%clk 0:00:12]}  Kg6 {[%clk 0:00:05]} 51. Qg8+ {[%clk 0:00:13]}  Kh5 {[%clk 0:00:04]} 52. Qh7+ {[%clk 0:00:13]}  Qh6 {[%clk 0:00:04]} 53. Qf5+ {[%clk 0:00:13]}  Qg5 {[%clk 0:00:04]} 54. Qh7+ {[%clk 0:00:11]}  Qh6 {[%clk 0:00:05]} 55. g4+ {[%clk 0:00:07]}  hxg3 {[%clk 0:00:04]} 56. Qf5+ {[%clk 0:00:08]}  Qg5 {[%clk 0:00:05]} 57. Qh7+ {[%clk 0:00:09]}  Qh6 {[%clk 0:00:05]} 58. Qf5+ {[%clk 0:00:09]}  Qg5 {[%clk 0:00:05]} 59. Qh7+ {[%clk 0:00:10]}  Qh6 {[%clk 0:00:06]} 1/2-1/2


[Site "https://www.chess.com"]

[Event "Titled Tuesday Blitz November 29 Late 2022"]
[White "Mahdavi, Reza"]
[Black "Zeman, Matyas"]
[WhiteFideId "12595926"]
[BlackFideId "364398"]
[WhiteElo "2826"]
[BlackElo "2378"]
[Result "1-0"]
[Round "03"]
[TimeControl "180+1"]
[Date "2022.11.30"]
[WhiteClock "0:00:09"]
[BlackClock "0:00:06"]

1. d4 {[%clk 0:03:00]}  Nf6 {[%clk 0:02:57]} 2. c4 {[%clk 0:02:57]}  e6 {[%clk 0:02:57]} 3. Nf3 {[%clk 0:02:56]}  d5 {[%clk 0:02:56]} 4. Nc3 {[%clk 0:02:51]}  c5 {[%clk 0:02:54]} 5. cxd5 {[%clk 0:02:40]}  Nxd5 {[%clk 0:02:55]} 6. e4 {[%clk 0:02:33]}  Nxc3 {[%clk 0:02:55]} 7. bxc3 {[%clk 0:02:33]}  cxd4 {[%clk 0:02:55]} 8. cxd4 {[%clk 0:02:34]}  Bb4+ {[%clk 0:02:55]} 9. Bd2 {[%clk 0:02:35]}  Bxd2+ {[%clk 0:02:56]} 10. Qxd2 {[%clk 0:02:36]}  O-O {[%clk 0:02:55]} 11. Bc4 {[%clk 0:02:37]}  Nd7 {[%clk 0:02:53]} 12. O-O {[%clk 0:02:35]}  b6 {[%clk 0:02:53]} 13. Rad1 {[%clk 0:02:36]}  Bb7 {[%clk 0:02:53]} 14. Rfe1 {[%clk 0:02:37]}  Rc8 {[%clk 0:02:53]} 15. Bb3 {[%clk 0:02:37]}  Re8 {[%clk 0:02:54]} 16. h3 {[%clk 0:02:34]}  h6 {[%clk 0:02:54]} 17. Re3 {[%clk 0:02:32]}  Qc7 {[%clk 0:02:47]} 18. Qe2 {[%clk 0:02:32]}  Nf6 {[%clk 0:02:33]} 19. d5 {[%clk 0:02:32]}  exd5 {[%clk 0:02:25]} 20. e5 {[%clk 0:02:31]}  Ne4 {[%clk 0:02:25]} 21. Qe1 {[%clk 0:01:05]}  Rcd8 {[%clk 0:01:59]} 22. Nd4 {[%clk 0:01:01]}  a6 {[%clk 0:01:12]} 23. f3 {[%clk 0:00:52]}  Nc5 {[%clk 0:01:12]} 24. Bc2 {[%clk 0:00:46]}  Ne6 {[%clk 0:01:07]} 25. Bb1 {[%clk 0:00:46]}  Qc5 {[%clk 0:00:58]} 26. Rc3 {[%clk 0:00:33]}  Qb4 {[%clk 0:00:52]} 27. a3 {[%clk 0:00:32]}  Qb2 {[%clk 0:00:46]} 28. Rb3 {[%clk 0:00:24]}  Qxd4+ {[%clk 0:00:27]} 29. Rxd4 {[%clk 0:00:24]}  Nxd4 {[%clk 0:00:28]} 30. Rxb6 {[%clk 0:00:25]}  Bc8 {[%clk 0:00:26]} 31. Qd2 {[%clk 0:00:24]}  Ne6 {[%clk 0:00:21]} 32. Rd6 {[%clk 0:00:24]}  Bb7 {[%clk 0:00:15]} 33. Qd3 {[%clk 0:00:19]}  g6 {[%clk 0:00:12]} 34. Qb3 {[%clk 0:00:20]}  Ba8 {[%clk 0:00:11]} 35. Rxa6 {[%clk 0:00:20]}  Nc5 {[%clk 0:00:12]} 36. Qb5 {[%clk 0:00:19]}  Nxa6 {[%clk 0:00:12]} 37. Qxa6 {[%clk 0:00:20]}  Rxe5 {[%clk 0:00:12]} 38. Qf6 {[%clk 0:00:20]}  Ree8 {[%clk 0:00:11]} 39. Kh2 {[%clk 0:00:20]}  d4 {[%clk 0:00:10]} 40. Bd3 {[%clk 0:00:21]}  Bd5 {[%clk 0:00:06]} 41. a4 {[%clk 0:00:21]}  Be6 {[%clk 0:00:06]} 42. a5 {[%clk 0:00:22]}  Ra8 {[%clk 0:00:06]} 43. a6 {[%clk 0:00:23]}  Ra7 {[%clk 0:00:05]} 44. Qxd4 {[%clk 0:00:22]}  Rea8 {[%clk 0:00:04]} 45. Qf6 {[%clk 0:00:23]}  Rxa6 {[%clk 0:00:04]} 46. Bxa6 {[%clk 0:00:21]}  Rxa6 {[%clk 0:00:05]} 47. Qd8+ {[%clk 0:00:21]}  Kh7 {[%clk 0:00:05]} 48. Qd4 {[%clk 0:00:22]}  Ra5 {[%clk 0:00:05]} 49. h4 {[%clk 0:00:22]}  Rd5 {[%clk 0:00:05]} 50. Qf6 {[%clk 0:00:22]}  h5 {[%clk 0:00:06]} 51. Kg3 {[%clk 0:00:19]}  Rf5 {[%clk 0:00:06]} 52. Qe7 {[%clk 0:00:20]}  Kg7 {[%clk 0:00:06]} 53. Kf2 {[%clk 0:00:20]}  Rf6 {[%clk 0:00:06]} 54. Ke3 {[%clk 0:00:20]}  Bf5 {[%clk 0:00:05]} 55. Qd8 {[%clk 0:00:20]}  Be6 {[%clk 0:00:05]} 56. Ke4 {[%clk 0:00:20]}  Rf5 {[%clk 0:00:02]} 57. g4 {[%clk 0:00:18]}  Rd5 {[%clk 0:00:03]} 58. Qb6 {[%clk 0:00:16]}  hxg4 {[%clk 0:00:02]} 59. fxg4 {[%clk 0:00:17]}  Rd1 {[%clk 0:00:02]} 60. Kf4 {[%clk 0:00:13]}  Rd5 {[%clk 0:00:02]} 61. Qb2+ {[%clk 0:00:12]}  Kg8 {[%clk 0:00:02]} 62. Qc3 {[%clk 0:00:11]}  Kh7 {[%clk 0:00:03]} 63. Qb2 {[%clk 0:00:11]}  Kg8 {[%clk 0:00:03]} 64. Qb8+ {[%clk 0:00:10]}  Kh7 {[%clk 0:00:04]} 65. Qa7 {[%clk 0:00:09]}  Kg7 {[%clk 0:00:04]} 66. Qe3 {[%clk 0:00:06]}  Kh7 {[%clk 0:00:04]} 67. Qe2 {[%clk 0:00:07]}  Kg7 {[%clk 0:00:05]} 68. h5 {[%clk 0:00:07]}  gxh5 {[%clk 0:00:05]} 69. gxh5 {[%clk 0:00:08]}  Kh7 {[%clk 0:00:05]} 70. Qe4+ {[%clk 0:00:08]}  Rf5+ {[%clk 0:00:06]} 71. Kg4 {[%clk 0:00:07]}  Kh6 {[%clk 0:00:06]} 72. Qe3+ {[%clk 0:00:07]}  Kh7 {[%clk 0:00:04]} 73. Kh4 {[%clk 0:00:08]}  Rf6 {[%clk 0:00:04]} 74. Qe4+ {[%clk 0:00:08]}  Rf5 {[%clk 0:00:05]} 75. Qd3 {[%clk 0:00:08]}  Kh6 {[%clk 0:00:05]} 76. Qe3+ {[%clk 0:00:08]}  Kh7 {[%clk 0:00:05]} 77. Qd4 {[%clk 0:00:09]}  Kh6 {[%clk 0:00:06]} 78. Qh8# {[%clk 0:00:09]} 1-0


[Site "https://www.chess.com"]